[Event "FIDE World Cup O12-TB 2024"]
[Site "Batumi"]
[Date "2024.07.02"]
[Round "2.11"]
[White "Ambartsumyan, Yuri"]
[Black "Sobirov, Afruzbek"]
[Result "1-0"]
[ECO "D00"]
[WhiteElo "1750"]
[BlackElo "1789"]
[Annotator "NA RC"]
[PlyCount "103"]
[EventDate "2024.06.23"]
[EventType "swiss"]
[EventCountry "GEO"]
[SourceTitle "playchess.com"]
[Source "ChessBase"]
[SourceQuality "1"]
[TimeControl "5400+30"]

1. d4 {[%emt 0:00:01]} Nf6 {[%emt 0:00:16]} 2. Bg5 {[%emt 0:00:02]} d5 {[%emt 0:00:56]} 3. Bxf6 {[%emt 0:00:03]} exf6 {[%emt 0:00:20]} 4. Nf3 {[%emt 0:00:06]} Bd6 {[%emt 0:00:35]} 5. e3 {[%emt 0:00:47]} Bf5 {[%emt 0:02:03]} 6. Bd3 {[%emt 0:00:04]} Be4 {[%emt 0:18:47]} 7. c4 {[%emt 0:00:50]} f5 {[%emt 0:02:15]} 8. cxd5 {[%emt 0:00:15]} Bb4+ {[%emt 0:00:42]} 9. Nc3 {[%emt 0:00:11]} Qxd5 {[%emt 0:00:30]} 10. O-O {[%emt 0:02:13]} Bxc3 {[%emt 0:03:53]} 11. bxc3 {[%emt 0:02:17]} Bxf3 {[%emt 0:02:12]} 12. Qxf3 {[%emt 0:00:04]} Qxf3 {[%emt 0:00:08]} 13. gxf3 {[%emt 0:00:03]} f4 {[%emt 0:03:08]} 14. e4 {[%emt 0:04:34]} Nd7 {[%emt 0:00:31]} 15. Rab1 {[%emt 0:00:06]} O-O-O {[%emt 0:02:36]} 16. Rb5 {[%emt 0:00:37]} g6 {[%emt 0:06:00]} 17. Rfb1 {[%emt 0:02:39]} b6 {[%emt 0:00:07]} 18. Bc4 {[%emt 0:00:22]} c6 {[%emt 0:03:01]} 19. Rg5 {[%emt 0:03:47]} f6 {[%emt 0:02:04]} 20. Rg4 {[%emt 0:01:04]} g5 {[%emt 0:00:09]} 21. Kh1 {[%emt 0:01:11]} Rhe8 {[%emt 0:01:55]} 22. Rgg1 {[%emt 0:00:29]} b5 {[%emt 0:03:08]} 23. Be2 {[%emt 0:04:30]} Nb6 {[%emt 0:00:38]} 24. Rgd1 {[%emt 0:01:46]} a6 {[%emt 0:07:12]} 25. Rbc1 {[%emt 0:01:12]} c5 {[%emt 0:01:07]} 26. Rd2 {[%emt 0:13:21]} Kc7 {[%emt 0:01:23]} 27. Kg2 {[%emt 0:02:48]} Kb7 {[%emt 0:04:21]} 28. Rcd1 {[%emt 0:04:03]} Na4 {[%emt 0:00:20]} 29. Rc1 {[%emt 0:01:26]} f5 {[%emt 0:01:14]} 30. e5 {[%emt 0:02:53]} Rxe5 {[%emt 0:00:51]} 31. Bd1 {[%emt 0:00:59]} Nb6 {[%emt 0:00:11]} 32. Bb3 {[%emt 0:00:10]} a5 {[%emt 0:02:40]} 33. a3 {[%emt 0:09:35]} Re7 {[%emt 0:02:27]} 34. Rcd1 {[%emt 0:08:32]} Red7 {[%emt 0:04:00]} 35. Kg1 {[%emt 0:00:41]} cxd4 {[%emt 0:01:17]} 36. cxd4 {[%emt 0:00:08]} Nc4 {[%emt 0:00:22]} 37. Bxc4 {[%emt 0:01:59]} bxc4 {[%emt 0:00:05]} 38. Kg2 {[%emt 0:02:24]} Kc6 {[%emt 0:00:10]} 39. h3 {[%emt 0:01:08]} Kb5 {[%emt 0:00:17]} 40. a4+ {[%emt 0:00:51]} Kb4 {[%emt 0:00:20]} 41. Rb2+ {[%emt 0:01:43]} Kc3 {[%emt 0:00:04]} 42. Rdd2 {[%emt 0:00:09]} Rd5 {[%emt 0:01:07]} 43. Kf1 {[%emt 0:02:45]} R5d6 {[%emt 0:00:50]} 44. Rbc2+ {[%emt 0:02:02]} Kb3 {[%emt 0:00:13]} 45. Rb2+ {[%emt 0:00:01]} Kxa4 {[%emt 0:00:25]} 46. Rd1 {[%emt 0:00:05]} Ka3 {[%emt 0:00:33]} 47. Rb5 {[%emt 0:00:07]} Ka2 {[%emt 0:00:48]} 48. Rd2+ {[%emt 0:00:09]} Ka1 {[%emt 0:00:23]} 49. Rd1+ {[%emt 0:00:19]} Ka2 {[%emt 0:00:16]} 50. Rd2+ {[%emt 0:00:03]} Ka3 {[%emt 0:00:07]} 51. Rd1 {[%emt 0:00:06]} Ka4 {[%emt 0:00:18]} 52. Rb7 {[%emt 0:00:17]} 1-0

[Event "FIDE World Cup O12-TB 2024"]
[Site "Batumi"]
[Date "2024.07.02"]
[Round "2.12"]
[White "Yin, Zeming"]
[Black "Diaz Guerrero, Jesus Daniel"]
[Result "1/2-1/2"]
[ECO "C54"]
[WhiteElo "1832"]
[BlackElo "2032"]
[Annotator "NA RC"]
[PlyCount "82"]
[EventDate "2024.06.23"]
[EventType "swiss"]
[EventCountry "GEO"]
[SourceTitle "playchess.com"]
[Source "ChessBase"]
[SourceQuality "1"]
[TimeControl "5400+30"]

1. e4 {[%emt 0:00:04]} e5 {[%emt 0:00:10]} 2. Nf3 {[%emt 0:00:03]} Nc6 {[%emt 0:00:04]} 3. Bc4 {[%emt 0:00:04]} Nf6 {[%emt 0:00:06]} 4. d3 {[%emt 0:00:02]} Bc5 {[%emt 0:04:31]} 5. c3 {[%emt 0:00:06]} O-O {[%emt 0:00:09]} 6. O-O {[%emt 0:00:04]} d5 {[%emt 0:01:19]} 7. exd5 {[%emt 0:00:04]} Nxd5 {[%emt 0:00:05]} 8. Re1 {[%emt 0:00:09]} Bg4 {[%emt 0:00:04]} 9. Nbd2 {[%emt 0:00:30]} Nb6 {[%emt 0:03:58]} 10. Bb5 {[%emt 0:07:30]} f6 {[%emt 0:10:29]} 11. Ne4 {[%emt 0:12:33]} Be7 {[%emt 0:06:34]} 12. h3 {[%emt 0:07:04]} Bd7 {[%emt 0:24:46]} 13. a4 {[%emt 0:19:06]} a6 {[%emt 0:04:16]} 14. Qb3+ {[%emt 0:02:25]} Kh8 {[%emt 0:00:08]} 15. Bxc6 {[%emt 0:00:23]} Bxc6 {[%emt 0:00:10]} 16. a5 {[%emt 0:02:08]} Nc8 {[%emt 0:15:32]} 17. d4 {[%emt 0:10:11]} Bxe4 {[%emt 0:00:51]} 18. Rxe4 {[%emt 0:00:11]} Nd6 {[%emt 0:26:18]} 19. Re1 {[%emt 0:00:13]} e4 {[%emt 0:00:00]} 20. Nh2 {[%emt 0:06:57]} f5 {[%emt 0:00:00]} 21. Bf4 {[%emt 0:00:32]} Bg5 {[%emt 0:00:00]} 22. Be5 {[%emt 0:03:18]} Qe7 {[%emt 0:00:00]} 23. f3 {[%emt 0:04:52]} Nf7 {[%emt 0:00:00]} 24. fxe4 {[%emt 0:03:58]} Nxe5 {[%emt 0:00:00]} 25. exf5 {[%emt 0:00:54]} Qf7 {[%emt 0:00:00]} 26. Qxb7 {[%emt 0:00:55]} Nd3 {[%emt 0:00:00]} 27. Re2 {[%emt 0:01:06]} Qxf5 {[%emt 0:04:30]} 28. Rf1 {[%emt 0:00:39]} Qxa5 {[%emt 0:00:00]} 29. Qe4 {[%emt 0:02:00]} Nf4 {[%emt 0:00:00]} 30. Ref2 {[%emt 0:02:48]} Rfe8 {[%emt 0:00:12]} 31. Rxf4 {[%emt 0:02:55]} Bxf4 {[%emt 0:00:16]} 32. Qxf4 {[%emt 0:00:08]} Qb6 {[%emt 0:00:49]} 33. b4 {[%emt 0:00:55]} a5 {[%emt 0:00:31]} 34. bxa5 {[%emt 0:00:13]} Qxa5 {[%emt 0:00:06]} 35. Qf3 {[%emt 0:00:20]} Qa3 {[%emt 0:00:39]} 36. Ng4 {[%emt 0:02:48]} Rf8 {[%emt 0:00:18]} 37. Qe3 {[%emt 0:00:54]} Rxf1+ {[%emt 0:00:50]} 38. Kxf1 {[%emt 0:00:02]} Qa1+ {[%emt 0:00:51]} 39. Kf2 {[%emt 0:00:30]} Qa2+ {[%emt 0:00:49]} 40. Kg1 {[%emt 0:00:20]} Qf7 {[%emt 0:00:09]} 41. Ne5 {[%emt 0:01:18]} Qf5 {[%emt 0:00:39]} 1/2-1/2

[Event "FIDE World Cup O12-TB 2024"]
[Site "Batumi"]
[Date "2024.07.02"]
[Round "2.13"]
[White "Kakavand, Ramtin"]
[Black "Kozhedub, Ivan"]
[Result "0-1"]
[ECO "B27"]
[WhiteElo "2059"]
[BlackElo "1778"]
[Annotator "NA RC"]
[PlyCount "124"]
[EventDate "2024.06.23"]
[EventType "swiss"]
[EventCountry "GEO"]
[SourceTitle "playchess.com"]
[Source "ChessBase"]
[SourceQuality "1"]
[TimeControl "5400+30"]

1. e4 {[%emt 0:21:58]} c5 {[%emt 0:00:06]} 2. Nf3 {[%emt 0:00:11]} g6 {[%emt 0:00:03]} 3. d4 {[%emt 0:00:05]} cxd4 {[%emt 0:00:04]} 4. Qxd4 {[%emt 0:00:04]} Nf6 {[%emt 0:00:03]} 5. Nc3 {[%emt 0:00:07]} Nc6 {[%emt 0:00:03]} 6. Qa4 {[%emt 0:00:01]} d6 {[%emt 0:00:12]} 7. e5 {[%emt 0:00:01]} dxe5 {[%emt 0:00:06]} 8. Nxe5 {[%emt 0:00:01]} Bd7 {[%emt 0:02:17]} 9. Nxd7 {[%emt 0:00:02]} Nxd7 {[%emt 0:00:09]} 10. Be3 {[%emt 0:05:41]} Bg7 {[%emt 0:02:09]} 11. Be2 {[%emt 0:05:37]} O-O {[%emt 0:01:19]} 12. O-O {[%emt 0:00:14]} e6 {[%emt 0:00:12]} 13. Rad1 {[%emt 0:01:49]} Qe7 {[%emt 0:01:14]} 14. Qb3 {[%emt 0:00:13]} Nf6 {[%emt 0:07:06]} 15. Na4 {[%emt 0:04:27]} Rfd8 {[%emt 0:01:21]} 16. c4 {[%emt 0:00:01]} e5 {[%emt 0:05:56]} 17. Rfe1 {[%emt 0:19:11]} Qc7 {[%emt 0:14:24]} 18. Bf3 {[%emt 0:16:41]} e4 {[%emt 0:07:04]} 19. Be2 {[%emt 0:00:24]} Ne5 {[%emt 0:00:19]} 20. h3 {[%emt 0:02:04]} Nfd7 {[%emt 0:08:48]} 21. Qc2 {[%emt 0:05:35]} f5 {[%emt 0:01:51]} 22. Nc3 {[%emt 0:00:11]} Nf8 {[%emt 0:09:18]} 23. Nb5 {[%emt 0:06:59]} Qe7 {[%emt 0:09:42]} 24. Bxa7 {[%emt 0:03:29]} Ne6 {[%emt 0:02:55]} 25. Rxd8+ {[%emt 0:04:26]} Rxd8 {[%emt 0:00:17]} 26. Be3 {[%emt 0:00:06]} f4 {[%emt 0:04:59]} 27. Bb6 {[%emt 0:00:07]} Rd7 {[%emt 0:04:59]} 28. Bg4 {[%emt 0:00:36]} Nxg4 {[%emt 0:03:02]} 29. hxg4 {[%emt 0:00:02]} Ng5 {[%emt 0:01:05]} 30. c5 {[%emt 0:03:15]} Kh8 {[%emt 0:04:13]} 31. Nd6 {[%emt 0:00:10]} e3 {[%emt 0:01:16]} 32. fxe3 {[%emt 0:00:50]} Qe6 {[%emt 0:01:44]} 33. Qa4 {[%emt 0:00:38]} h6 {[%emt 0:01:24]} 34. Qxf4 {[%emt 0:01:06]} Be5 {[%emt 0:00:56]} 35. Qf8+ {[%emt 0:01:01]} Kh7 {[%emt 0:00:05]} 36. Re2 {[%emt 0:00:34]} Qxg4 {[%emt 0:00:18]} 37. Qf1 {[%emt 0:00:23]} Qg3 {[%emt 0:00:34]} 38. Qf8 {[%emt 0:00:38]} Qh2+ {[%emt 0:00:11]} 39. Kf1 {[%emt 0:00:08]} Qh1+ {[%emt 0:00:03]} 40. Kf2 {[%emt 0:00:05]} Bxd6 {[%emt 0:00:25]} 41. cxd6 {[%emt 0:00:01]} Ne4+ {[%emt 0:00:13]} 42. Kf3 {[%emt 0:00:10]} Qf1+ {[%emt 0:00:03]} 43. Kxe4 {[%emt 0:00:08]} Qxf8 {[%emt 0:00:05]} 44. Bc5 {[%emt 0:00:13]} Qf7 {[%emt 0:00:54]} 45. Kd4 {[%emt 0:00:07]} Qf6+ {[%emt 0:00:25]} 46. Kd5 {[%emt 0:00:09]} Qf5+ {[%emt 0:00:11]} 47. Kd4 {[%emt 0:00:03]} b6 {[%emt 0:00:21]} 48. Ba3 {[%emt 0:00:01]} Qg4+ {[%emt 0:00:25]} 49. Kd3 {[%emt 0:00:05]} Rxd6+ {[%emt 0:01:07]} 50. Bxd6 {[%emt 0:00:07]} Qd7 {[%emt 0:00:02]} 51. e4 {[%emt 0:00:11]} Qxd6+ {[%emt 0:00:03]} 52. Ke3 {[%emt 0:00:07]} Qe5 {[%emt 0:00:07]} 53. b3 {[%emt 0:00:07]} h5 {[%emt 0:00:07]} 54. Rd2 {[%emt 0:00:08]} h4 {[%emt 0:00:13]} 55. Kd3 {[%emt 0:00:25]} g5 {[%emt 0:00:07]} 56. Ke3 {[%emt 0:00:11]} g4 {[%emt 0:00:08]} 57. Re2 {[%emt 0:00:11]} Kg6 {[%emt 0:00:23]} 58. Kf2 {[%emt 0:00:07]} Qf4+ {[%emt 0:00:13]} 59. Kg1 {[%emt 0:00:07]} g3 {[%emt 0:00:26]} 60. Rc2 {[%emt 0:00:11]} Qe3+ {[%emt 0:00:05]} 61. Kf1 {[%emt 0:00:07]} Qxe4 {[%emt 0:00:17]} 62. Re2 {[%emt 0:00:09]} Qf4+ {[%emt 0:00:05]} 0-1

[Event "FIDE World Cup O12-TB 2024"]
[Site "Batumi"]
[Date "2024.07.02"]
[Round "2.14"]
[White "Nanayakkara, Sanuk"]
[Black "Martinez Flores, Matias"]
[Result "1-0"]
[ECO "D02"]
[WhiteElo "1714"]
[BlackElo "2080"]
[Annotator "NA RC"]
[PlyCount "89"]
[EventDate "2024.06.23"]
[EventType "swiss"]
[EventCountry "GEO"]
[SourceTitle "playchess.com"]
[Source "ChessBase"]
[SourceQuality "1"]
[TimeControl "5400+30"]

1. Nf3 {[%emt 0:00:05]} d5 {[%emt 0:00:08]} 2. g3 {[%emt 0:00:12]} Nf6 {[%emt 0:00:05]} 3. Bg2 {[%emt 0:00:05]} c5 {[%emt 0:00:05]} 4. O-O {[%emt 0:00:08]} e6 {[%emt 0:00:07]} 5. d4 {[%emt 0:05:40]} cxd4 {[%emt 0:00:10]} 6. Qxd4 {[%emt 0:00:58]} Nc6 {[%emt 0:00:22]} 7. Qd1 {[%emt 0:02:29]} Bc5 {[%emt 0:01:24]} 8. c4 {[%emt 0:00:53]} d4 {[%emt 0:08:33]} 9. e3 {[%emt 0:08:31]} O-O {[%emt 0:12:39]} 10. exd4 {[%emt 0:20:35]} Nxd4 {[%emt 0:01:41]} 11. Nc3 {[%emt 0:00:27]} Nc6 {[%emt 0:15:27]} 12. Qe2 {[%emt 0:07:34]} Qe7 {[%emt 0:02:44]} 13. Na4 {[%emt 0:14:07]} Bd6 {[%emt 0:00:35]} 14. Be3 {[%emt 0:05:39]} e5 {[%emt 0:01:32]} 15. Rac1 {[%emt 0:01:57]} Bg4 {[%emt 0:03:37]} 16. h3 {[%emt 0:01:06]} Bh5 {[%emt 0:00:36]} 17. Qc2 {[%emt 0:00:52]} Bg6 $11 {[%emt 0:14:15]} 18. Qb3 {[%emt 0:04:50]} Rad8 {[%emt 0:08:38]} 19. Nh4 {[%emt 0:02:11]} Rd7 {[%emt 0:05:16]} 20. Nxg6 {[%emt 0:04:02]} hxg6 {[%emt 0:00:06]} 21. Rfd1 {[%emt 0:02:48]} Rfd8 {[%emt 0:01:47]} 22. Nc3 {[%emt 0:01:06]} e4 {[%emt 0:02:47]} 23. Bg5 {[%emt 0:02:47]} e3 {[%emt 0:08:52]} 24. Bxe3 {[%emt 0:00:45]} Bxg3 {[%emt 0:01:14]} 25. Nd5 {[%emt 0:00:42]} Nxd5 {[%emt 0:00:07]} 26. cxd5 {[%emt 0:00:11]} Na5 {[%emt 0:00:25]} 27. Qc3 {[%emt 0:00:46]} Bc7 {[%emt 0:00:18]} 28. b4 {[%emt 0:00:20]} Nc6 {[%emt 0:00:14]} 29. Re1 {[%emt 0:01:55]} Be5 {[%emt 0:02:43]} 30. Qb3 {[%emt 0:01:14]} Nb8 {[%emt 0:01:58]} 31. Bxa7 {[%emt 0:01:42]} Qf6 {[%emt 0:01:38]} 32. Qf3 {[%emt 0:02:40]} Na6 {[%emt 0:02:01]} 33. Qxf6 {[%emt 0:02:37]} gxf6 {[%emt 0:00:06]} 34. Bc5 {[%emt 0:00:30]} Rb8 {[%emt 0:02:12]} 35. Rb1 {[%emt 0:02:32]} b6 {[%emt 0:00:18]} 36. Be3 {[%emt 0:00:05]} Bc3 {[%emt 0:00:11]} 37. Rec1 {[%emt 0:00:04]} Bxb4 {[%emt 0:01:16]} 38. Bf1 {[%emt 0:00:22]} b5 {[%emt 0:00:10]} 39. Rc6 {[%emt 0:00:27]} Rd6 {[%emt 0:00:59]} 40. Bf4 {[%emt 0:01:00]} Rxc6 {[%emt 0:02:40]} 41. dxc6 {[%emt 0:00:06]} Rc8 {[%emt 0:00:32]} 42. Bxb5 {[%emt 0:00:10]} Nc7 {[%emt 0:00:07]} 43. Bxc7 {[%emt 0:00:58]} Rxc7 {[%emt 0:00:04]} 44. Rxb4 {[%emt 0:00:03]} Kf8 {[%emt 0:00:12]} 45. Rd4 {[%emt 0:00:11]} 1-0

[Event "FIDE World Cup O12-TB 2024"]
[Site "Batumi"]
[Date "2024.07.02"]
[Round "2.15"]
[White "Pirtac, Alexandru"]
[Black "Li, Yiheng"]
[Result "1-0"]
[ECO "B15"]
[WhiteElo "1977"]
[BlackElo "1886"]
[Annotator "NA RC"]
[PlyCount "71"]
[EventDate "2024.06.23"]
[EventType "swiss"]
[EventCountry "GEO"]
[SourceTitle "playchess.com"]
[Source "ChessBase"]
[SourceQuality "1"]
[TimeControl "5400+30"]

1. e4 {[%emt 0:05:39]} c6 {[%emt 0:00:05]} 2. d4 {[%emt 0:00:45]} d5 {[%emt 0:00:04]} 3. Nc3 {[%emt 0:01:22]} dxe4 {[%emt 0:00:04]} 4. Nxe4 {[%emt 0:00:19]} Nf6 {[%emt 0:00:04]} 5. Nxf6+ {[%emt 0:00:11]} exf6 {[%emt 0:00:05]} 6. c3 {[%emt 0:00:26]} Bd6 {[%emt 0:00:08]} 7. Bd3 {[%emt 0:00:07]} O-O {[%emt 0:00:12]} 8. Qc2 {[%emt 0:00:07]} Re8+ {[%emt 0:00:03]} 9. Ne2 {[%emt 0:00:10]} h5 {[%emt 0:00:03]} 10. Be3 {[%emt 0:00:41]} Nd7 {[%emt 0:00:15]} 11. O-O-O {[%emt 0:01:15]} Nf8 {[%emt 0:00:04]} 12. h3 {[%emt 0:00:34]} h4 {[%emt 0:03:35]} 13. Rhg1 {[%emt 0:00:22]} Be6 {[%emt 0:02:07]} 14. g3 {[%emt 0:01:20]} b5 {[%emt 0:10:33]} 15. gxh4 {[%emt 0:02:51]} Bd5 {[%emt 0:03:35]} 16. Bh6 {[%emt 0:04:08]} Ne6 {[%emt 0:00:16]} 17. Bf5 {[%emt 0:04:48]} Bf8 {[%emt 0:02:38]} 18. Rg3 {[%emt 0:06:46]} g6 {[%emt 0:00:58]} 19. Qd2 {[%emt 0:10:52]} Qa5 {[%emt 0:01:58]} 20. Bxf8 {[%emt 0:08:37]} Kxf8 {[%emt 0:00:11]} 21. Bxe6 {[%emt 0:00:28]} Bxe6 {[%emt 0:00:56]} 22. a3 {[%emt 0:03:31]} Rad8 {[%emt 0:01:40]} 23. Qh6+ {[%emt 0:02:26]} Ke7 {[%emt 0:00:07]} 24. Nf4 {[%emt 0:01:15]} Bf5 {[%emt 0:01:28]} 25. Re3+ {[%emt 0:02:51]} Kd7 {[%emt 0:01:01]} 26. Qg7 {[%emt 0:00:49]} Rxe3 {[%emt 0:00:48]} 27. fxe3 {[%emt 0:00:16]} Ke7 {[%emt 0:00:04]} 28. e4 {[%emt 0:01:32]} Bxe4 {[%emt 0:01:11]} 29. Re1 {[%emt 0:00:06]} Rxd4 {[%emt 0:00:07]} 30. Nxg6+ {[%emt 0:00:31]} Ke6 {[%emt 0:01:02]} 31. Nf4+ {[%emt 0:00:35]} Ke7 {[%emt 0:00:08]} 32. Nh5 {[%emt 0:00:29]} Qa4 {[%emt 0:04:18]} 33. Qxf6+ {[%emt 0:01:15]} Kf8 {[%emt 0:00:10]} 34. Qf2 {[%emt 0:40:06]} Qb3 {[%emt 0:02:12]} 35. Nf6 {[%emt 0:00:00]} Bg6 {[%emt 0:01:51]} 36. h5 {[%emt 0:00:00]} 1-0

[Event "FIDE World Cup O12-TB 2024"]
[Site "Batumi"]
[Date "2024.07.02"]
[Round "2.16"]
[White "Kristesiashvili, Andria"]
[Black "Chia, Yu Zhe Ashton"]
[Result "0-1"]
[ECO "B38"]
[WhiteElo "1728"]
[BlackElo "2229"]
[Annotator "TA"]
[PlyCount "103"]
[EventDate "2024.06.23"]
[EventType "swiss"]
[EventCountry "GEO"]
[SourceTitle "playchess.com"]
[Source "ChessBase"]
[SourceQuality "1"]
[TimeControl "5400+30"]

{[%evp 11,103,60,56,31,33,0,11,-9,0,0,-11,-26,-22,-6,-12,-44,0,-41,-18,-22,-9,-18,-5,-22,-14,-27,-20,-15,-21,-19,0,-25,-1,-30,-14,-8,-4,-14,-2,-10,-5,-10,0,0,0,0,0,0,0,0,0,-6,-10,-16,-12,-24,-1,-1,-2,-5,0,-20,-21,-114,-15,-16,-10,-18,-18,-10,-18,-143,-26,-25,-8,-8,-8,-89,-122,-188,-189,-508,-413,-390,-391,-392,-267,-327,-308,-561,-550,-5453,-4631,-1892]} 1. e4 {[%emt 0:00:01]} c5 {[%emt 0:00:11]} 2. Nf3 {[%emt 0:00:23][%cal Bg1f3,Bf3d4,Bd4b5][%mdl 32]} g6 {[%emt 0:01:07]} 3. d4 {[%emt 0:00:13]} cxd4 {[%emt 0:00:05]} 4. Nxd4 {[%emt 0:00:04]} Bg7 {[%emt 0:00:07]} 5. c4 {[%emt 0:00:09]} Nc6 {[%emt 0:01:31]} 6. Be3 {[%emt 0:00:12]} Qb6 {[%emt 0:01:44]} 7. Nb5 {[%emt 0:06:46]} Qa5+ {[%emt 0:00:12]} 8. Bd2 {[%emt 0:01:34]} Qd8 {[%emt 0:01:44]} 9. Bc3 {[%emt 0:02:06] Die Stellung ist ausgeglichen.} Nf6 {[%emt 0:01:48]} 10. Bd3 {[%emt 0:05:31]} a6 {[%emt 0:01:40]} 11. N5a3 {[%emt 0:02:14]} Qc7 {[%emt 0:01:11]} 12. Nd2 {[%emt 0:02:57]} O-O {[%emt 0:01:05]} 13. O-O {[%emt 0:00:13]} d6 {[%emt 0:02:32]} (13... Ng4 $5 14. Qxg4 Bxc3 15. bxc3 Qd6 $11) 14. h3 {[%emt 0:05:28]} e6 {[%emt 0:02:54]} 15. Nf3 {[%emt 0:11:07]} Rd8 {[%emt 0:00:43]} 16. Qc1 {[%emt 0:14:13]} d5 {[%emt 0:02:52]} 17. exd5 {[%emt 0:00:08]} exd5 {[%emt 0:00:04]} 18. cxd5 {[%emt 0:00:16]} Nxd5 {[%emt 0:00:13]} 19. Bxg7 {[%emt 0:00:36]} Kxg7 {[%emt 0:02:01]} 20. Rd1 {[%emt 0:02:07]} Nf4 {[%emt 0:02:22]} 21. Bf1 {[%emt 0:02:16] [#] Und Rxd8 würde nun gewinnen.} Be6 {[%emt 0:00:36][%cal Bc8e6,Be6d5,Bd5c6][%mdl 32]} (21... Rxd1 $5 22. Qc3+ Kg8 23. Rxd1 Be6 $11) 22. Nd4 {[%emt 0:05:59]} Bd5 {[%emt 0:03:57][%cal Od5g2] ...Bxg2! wäre nun fies.} (22... Qe5 $5 23. Nxe6+ Nxe6 $14) 23. Nxc6 {[%emt 0:02:57]} Bxc6 {[%emt 0:02:14]} 24. g3 {[%emt 0:02:50]} Ne6 {[%emt 0:04:55] ...Rxd1 ist eine echte Drohung.} 25. Qc3+ {[%emt 0:02:46]} Kg8 {[%emt 0:10:18]} 26. Bg2 {[%emt 0:09:42]} Bxg2 {[%emt 0:16:17]} 27. Qxc7 {[%emt 0:00:06]} Nxc7 {[%emt 0:00:03]} (27... Rxd1+ {vereinfacht} 28. Rxd1 Nxc7 29. Kxg2 Ne6) 28. Kxg2 {[%emt 0:00:05]} Ne6 {[%emt 0:07:04]} 29. Nc4 {[%emt 0:02:24]} Rac8 {[%emt 0:00:41]} 30. Ne3 {[%emt 0:00:14]} f5 {[%emt 0:03:09]} 31. Rxd8+ {[%emt 0:09:50]} Rxd8 $11 {[%emt 0:00:24][%mdl 4096] Endspiel. KRN-KRN} 32. Re1 {[%emt 0:00:40][%cal Oe3f5]} Kf7 {[%emt 0:01:15]} 33. Nc4 {[%emt 0:00:16]} b5 {[%emt 0:01:30]} 34. Ne5+ {[%emt 0:00:13]} Kf6 {[%emt 0:00:34]} 35. Nf3 {[%emt 0:00:10] Es drohte Rd2} g5 {[%emt 0:07:36]} 36. Re2 {[%emt 0:01:42]} h5 {[%emt 0:01:43]} 37. Ne1 {[%emt 0:01:56]} (37. Rc2 $11) 37... g4 {[%emt 0:02:17]} (37... f4 $17 {Mit der Idee ...Rd1.} 38. b3 Rd1) 38. hxg4 {[%emt 0:00:31]} hxg4 {[%emt 0:00:05]} 39. f3 {[%emt 0:00:55]} Rd1 {[%emt 0:02:23] Weiss muss nun ...Nd4 beachten.} 40. fxg4 {[%emt 0:00:41]} Nd4 {[%emt 0:02:09]} 41. Re8 {[%emt 0:00:09]} (41. g5+ $1 $11 Kxg5 42. Nf3+ Kf6 43. Nxd4 Rxd4 44. Kf3) 41... Rd2+ {[%emt 0:01:46]} (41... fxg4 $17 {Zielt auf ...Rd2+ ab.} 42. Rd8 Ke7) 42. Kh3 {[%emt 0:00:11]} fxg4+ {[%emt 0:02:51]} 43. Kxg4 {[%emt 0:00:06]} Rxb2 {[%emt 0:00:28]} 44. Rf8+ {[%emt 0:01:13] [#]} (44. a4 $11 {hält das Gleichgewicht.}) 44... Ke7 $1 $17 {[%emt 0:01:41] Schwarz steht aktiver.} 45. Rf1 {[%emt 0:00:16]} (45. Rf4 $17 {ist wohl besser.} Ne6 46. Rf1 Rxa2 47. Nf3) 45... Rxa2 $19 {[%emt 0:00:41]} 46. Kg5 $2 {[%emt 0:00:44]} (46. Nd3 {leistet mehr Widerstand.}) 46... Rd2 {[%emt 0:02:52]} 47. Kf4 {[%emt 0:00:36]} Rd1 {[%emt 0:01:54]} 48. Rh1 {[%emt 0:00:23]} b4 {[%emt 0:00:58]} 49. Ke4 {[%emt 0:00:42]} Ne6 {[%emt 0:01:45]} 50. Rh7+ $2 {[%emt 0:00:14]} (50. Ke3 {ist der einzige Weg für Weiss..} Nc5 51. Ke2) 50... Kd6 {[%emt 0:00:33]} 51. Nd3 {[%emt 0:00:23][%cal Oh7h5]} Ng5+ {[%emt 0:00:10]} 52. Kd4 {[%emt 0:09:02] Gewichteter Fehlerwert: Weiß=0.43/Schwarz=0.18 (sehr präzise) .  Fehler:       	Weiß=6     	Schwarz=2     Ungenau:       	Weiß=4     	Schwarz=2     OK:         	Weiß=11    	Schwarz=13    Bester:       	Weiß=5     	Schwarz=3     Stark:        	---       	Schwarz=1} 0-1

[Event "FIDE World Cup O12-TB 2024"]
[Site "Batumi"]
[Date "2024.07.02"]
[Round "2.17"]
[White "Akhmet, Suleyman"]
[Black "Berdashkevich, Makar"]
[Result "1/2-1/2"]
[ECO "E16"]
[WhiteElo "1793"]
[BlackElo "1650"]
[Annotator "NA RC"]
[PlyCount "84"]
[EventDate "2024.06.23"]
[EventType "swiss"]
[EventCountry "GEO"]
[SourceTitle "playchess.com"]
[Source "ChessBase"]
[SourceQuality "1"]
[TimeControl "5400+30"]

1. d4 {[%emt 0:00:11]} Nf6 {[%emt 0:06:31]} 2. c4 {[%emt 1:31:19]} e6 {[%emt 0:00:13]} 3. Nf3 {[%emt 0:00:00]} Bb4+ {[%emt 0:00:19]} 4. Bd2 {[%emt 0:00:00]} Qe7 {[%emt 0:00:06]} 5. a3 {[%emt 0:00:00]} Bxd2+ {[%emt 0:00:16]} 6. Nbxd2 {[%emt 0:00:00]} d6 {[%emt 0:01:40]} 7. g3 {[%emt 0:00:00]} b6 {[%emt 0:03:30]} 8. Bg2 {[%emt 0:00:00]} Bb7 {[%emt 0:00:07]} 9. O-O {[%emt 0:00:00]} O-O {[%emt 0:00:49]} 10. Qc2 {[%emt 0:00:00]} Nbd7 {[%emt 0:01:05]} 11. e4 {[%emt 0:00:00]} e5 {[%emt 0:00:17]} 12. d5 {[%emt 0:00:00]} g6 {[%emt 0:02:53]} 13. b4 {[%emt 0:00:00]} Ne8 {[%emt 0:06:29]} 14. Nh4 {[%emt 0:00:00]} Ng7 {[%emt 0:01:40]} 15. Rae1 {[%emt 0:00:00]} Rac8 {[%emt 0:12:12]} 16. Qd3 {[%emt 0:00:00]} c6 {[%emt 0:12:09]} 17. Bh3 {[%emt 0:00:00]} Rcd8 {[%emt 0:05:00]} 18. Nb3 {[%emt 0:00:00]} Nb8 {[%emt 0:06:54]} 19. Rc1 {[%emt 0:08:30]} c5 {[%emt 0:04:42]} 20. bxc5 {[%emt 0:00:00]} dxc5 {[%emt 0:01:37]} 21. Nd2 {[%emt 0:00:00]} Ne8 {[%emt 0:01:11]} 22. Qc3 {[%emt 0:00:00]} Bc8 {[%emt 0:03:36]} 23. Bxc8 {[%emt 0:00:00]} Rxc8 {[%emt 0:00:08]} 24. f4 {[%emt 0:00:00]} Nd7 {[%emt 0:06:23]} 25. f5 {[%emt 0:00:00]} Nd6 {[%emt 0:02:31]} 26. fxg6 {[%emt 0:00:00]} hxg6 {[%emt 0:01:21]} 27. Qf3 {[%emt 0:00:00]} Qg5 {[%emt 0:03:45]} 28. Qe2 {[%emt 0:00:00]} Kg7 {[%emt 0:02:19]} 29. Nhf3 {[%emt 0:00:00]} Qh5 {[%emt 0:04:30]} 30. Rf2 {[%emt 0:00:00]} Rce8 {[%emt 0:04:11]} 31. Nh4 {[%emt 0:00:00]} Qg5 {[%emt 0:01:26]} 32. Nhf3 {[%emt 0:00:00]} Qh6 {[%emt 0:00:41]} 33. Rcf1 {[%emt 0:07:00]} f5 {[%emt 0:02:02]} 34. exf5 {[%emt 0:00:00]} gxf5 {[%emt 0:03:42]} 35. Nh4 {[%emt 0:00:00]} Qh7 {[%emt 0:00:51]} 36. Ndf3 {[%emt 0:00:00]} Ne4 {[%emt 0:00:50]} 37. Nxf5+ {[%emt 0:00:00]} Qxf5 {[%emt 0:00:12]} 38. Nh4 {[%emt 0:00:00]} Qxf2+ {[%emt 0:00:35]} 39. Rxf2 {[%emt 0:00:00]} Nxf2 {[%emt 0:00:06]} 40. Qh5 {[%emt 0:00:00]} e4 {[%emt 0:01:10]} 41. Qg6+ {[%emt 0:00:00]} Kh8 {[%emt 0:00:03]} 42. Qh6+ {[%emt 0:00:29]} Kg8 {[%emt 0:00:05]} 1/2-1/2